bitfinex/quotes_BTCUSD_20241001
["timestamp","ask_amount","ask_price","bid_price","bid_amount"]
[1727812814344,0.76619959,61829.0,61828.0,0.24056967]
[1727812814563,0.194096,61825.0,61821.0,0.24056967]
[1727812814783,0.388175,61828.0,61821.0,0.43467767]
[1727812815000,0.194096,61825.0,61817.0,0.19412]
[1727812815223,0.21944748,61825.0,61819.0,0.194114]
[1727812815446,0.21944748,61825.0,61819.0,0.194112]
[1727812815670,0.21944748,61825.0,61820.0,0.24056967]
[1727812815886,0.21944748,61825.0,61818.0,0.194117]
[1727812816107,0.02535148,61825.0,61819.0,0.62879867]
[1727812816324,0.02535148,61825.0,61824.0,0.19492]
[1727812817464,0.21944748,61825.0,61824.0,0.000821]
[1727812817884,0.22044748,61825.0,61824.0,0.013821]
[1727812818100,0.31490591,61825.0,61824.0,0.013821]
[1727812818323,0.32322221,61825.0,61824.0,0.000821]
[1727812818536,0.03466778,61825.0,61824.0,0.000821]
[1727812818969,0.22876378,61825.0,61824.0,0.000821]
[1727812819674,0.2289863,61825.0,61824.0,0.003821]
[1727812820542,0.194101,61824.0,61819.0,0.175835]
[1727812820759,0.4230823,61825.0,61818.0,0.24056967]
[1727812820760,0.2269863,61825.0,61818.0,0.24056967]
[1727812820978,0.00021254,61823.0,61821.0,0.194106]
[1727812821190,0.0073163,61825.0,61822.0,0.194105]
[1727812821402,0.194094,61826.0,61822.0,0.194105]
[1727812821637,0.3505518,61826.0,61822.0,0.194105]
[1727812821853,0.388159,61831.0,61818.0,0.24056967]
[1727812822068,0.194073,61833.0,61818.0,0.24056967]
[1727812822286,0.194074,61832.0,61825.0,0.388191]
[1727812822498,0.1564578,61833.0,61825.0,0.388191]
[1727812822727,0.482124,61836.0,61818.0,0.24056967]
[1727812822728,0.094,61836.0,61818.0,0.24056967]
[1727812822957,0.002,61840.0,61818.0,0.24056967]
[1727812822958,0.002,61840.0,61839.0,0.194052]
[1727812823173,0.002,61840.0,61838.0,0.194054]
[1727812823403,0.002,61840.0,61839.0,0.194052]
[1727812824358,0.02734392,61840.0,61839.0,0.194052]
[1727812824634,0.02834392,61840.0,61839.0,0.209052]
[1727812826036,0.02834392,61840.0,61839.0,0.015]
[1727812826464,0.02834392,61840.0,61839.0,0.209052]
[1727812826682,0.02834392,61840.0,61839.0,0.015]
[1727812827132,0.02834392,61840.0,61839.0,0.209052]
[1727812827560,0.02834392,61840.0,61839.0,0.015]
[1727812828201,0.02834392,61840.0,61839.0,0.209052]
[1727812828412,0.02834392,61840.0,61839.0,0.015]
[1727812830453,0.22239292,61840.0,61839.0,0.015]
[1727812830711,0.57290571,61840.0,61839.0,0.015]
[1727812831489,0.57276271,61840.0,61839.0,0.015]
[1727812831975,0.64641879,61840.0,61839.0,0.006]
[1727812832223,0.65241879,61840.0,61839.0,0.006]
[1727812832462,0.194083,61829.0,61828.0,0.24056967]
[1727812832977,0.19606059,61829.0,61828.0,0.24056967]
[1727812833214,0.19606059,61829.0,61824.0,0.00082]
[1727812833215,0.00197759,61829.0,61824.0,0.00082]
[1727812833750,0.00197759,61829.0,61825.0,0.24056967]
[1727812834039,0.00197759,61829.0,61828.0,0.006]
[1727812834273,0.24056967,61836.0,61831.0,0.194075]
[1727812834574,0.24056967,61836.0,61827.0,0.0759]
[1727812834844,0.24056967,61836.0,61824.0,0.00682]
[1727812835117,0.001857,61840.0,61828.0,0.24056967]
[1727812835357,0.02534614,61834.0,61829.0,0.388162]
[1727812835602,0.02534614,61834.0,61831.0,0.194075]
[1727812836235,0.02534614,61834.0,61832.0,0.194072]
[1727812836464,0.02534614,61834.0,61833.0,0.43464067]
[1727812836694,0.02534614,61834.0,61833.0,0.272971]
[1727812837361,0.02534614,61834.0,61833.0,0.194071]
[1727812838026,0.19408,61830.0,61829.0,0.002]
[1727812838290,0.67995286,61830.0,61829.0,0.002]
[1727812838502,0.68749659,61830.0,61829.0,0.002]
[1727812839145,0.68749659,61830.0,61824.0,0.00082]
[1727812839146,0.194096,61826.0,61824.0,0.00082]
[1727812839339,0.49341659,61830.0,61824.0,0.00082]
[1727812839340,0.19409,61827.0,61825.0,0.24056967]
[1727812839592,0.194096,61825.0,61824.0,0.00082]
[1727812840019,0.10756786,61826.0,61824.0,0.00082]
[1727812840242,0.21944302,61827.0,61825.0,0.24056967]
[1727812840243,0.02535102,61827.0,61825.0,0.24056967]
[1727812840455,0.02535102,61827.0,61826.0,0.194093]
[1727812841140,0.02535102,61827.0,61825.0,0.003]
[1727812841358,0.03442813,61827.0,61824.0,0.00082]
[1727812841793,0.03542813,61827.0,61826.0,0.008]
[1727812842500,0.03542813,61827.0,61826.0,0.202093]
[1727812842710,0.02635102,61827.0,61826.0,0.202093]
[1727812842917,0.03441663,61827.0,61826.0,0.194913]
[1727812843125,0.03441663,61827.0,61826.0,0.200913]
[1727812843337,0.03541663,61827.0,61826.0,0.200913]
[1727812843561,0.05726609,61827.0,61826.0,0.00682]
[1727812843769,0.05726609,61827.0,61826.0,0.200913]
[1727812843770,0.03671663,61827.0,61826.0,0.200913]
[1727812843982,0.03771663,61827.0,61826.0,0.01482]
[1727812844197,0.02865102,61827.0,61826.0,0.208913]
[1727812844407,0.03772944,61827.0,61826.0,0.208913]
[1727812844899,0.02865102,61827.0,61826.0,0.208913]
[1727812845117,0.03774241,61827.0,61826.0,0.208913]
[1727812845330,0.02865102,61827.0,61826.0,0.208913]
[1727812846183,0.0033,61827.0,61826.0,0.208913]
[1727812847060,0.01235004,61827.0,61826.0,0.208913]
[1727812847268,0.00422896,61827.0,61826.0,0.208913]
[1727812847477,0.00422896,61827.0,61826.0,0.21214757]
[1727812847696,0.0033,61827.0,61826.0,0.208913]
[1727812848100,0.0033,61827.0,61826.0,0.46860519]
[1727812848370,0.0033,61827.0,61826.0,0.5033708]
[1727812848576,0.0033,61827.0,61826.0,0.5777708]
[1727812849006,0.0033,61827.0,61826.0,0.5907708]
[1727812849228,0.003497,61840.0,61839.0,0.372252]
[1727812849437,0.003497,61840.0,61839.0,0.5287098]
[1727812850347,0.003497,61840.0,61839.0,0.5537098]
[1727812850572,0.003497,61840.0,61839.0,0.5427098]
[1727812851029,0.003497,61840.0,61839.0,0.294052]
[1727812851470,0.003497,61840.0,61839.0,0.308052]
[1727812851899,0.003497,61840.0,61839.0,0.208052]
[1727812852108,0.003497,61840.0,61837.0,0.194058]
[1727812852316,0.003497,61840.0,61839.0,0.222052]
[1727812852538,0.02883824,61840.0,61839.0,0.222052]
[1727812852961,0.02883824,61840.0,61839.0,0.208052]
[1727812853173,0.02883824,61840.0,61839.0,0.194052]
[1727812854027,0.02883824,61840.0,61839.0,0.206052]
[1727812854733,0.02883824,61840.0,61839.0,0.012]
[1727812854964,0.22288724,61840.0,61839.0,0.012]
[1727812855193,0.37934504,61840.0,61839.0,0.022]
[1727812856654,0.89300383,61840.0,61839.0,0.022]
[1727812856876,0.86766259,61840.0,61839.0,0.022]
[1727812857338,0.86766259,61840.0,61839.0,0.01]
[1727812857540,1.03556133,61840.0,61839.0,0.01]
[1727812857778,1.34126464,61840.0,61839.0,0.001]
[1727812857985,1.34126464,61840.0,61826.0,0.24138967]
[1727812857986,0.194089,61827.0,61826.0,0.24138967]
[1727812858405,0.3505468,61827.0,61826.0,0.00082]
[1727812858637,0.4477468,61827.0,61826.0,0.00082]
[1727812859325,0.291289,61827.0,61826.0,0.00082]
[1727812860041,0.194087,61828.0,61826.0,0.00182]
[1727812860244,0.388167,61829.0,61826.0,0.00182]
[1727812860456,0.194089,61827.0,61826.0,0.00182]
[1727812860911,0.194089,61827.0,61826.0,0.00082]
[1727812861391,0.194089,61827.0,61826.0,0.00182]
[1727812861678,0.52921962,61836.0,61827.0,0.194089]
[1727812861679,0.194077,61831.0,61827.0,0.194089]
[1727812862113,0.1564578,61833.0,61826.0,0.00182]
[1727812862114,0.19408,61830.0,61826.0,0.00182]
[1727812862330,0.38813,61835.0,61826.0,0.00182]
[1727812862550,0.194072,61833.0,61829.0,0.194083]
[1727812862761,0.001,61827.0,61826.0,0.24938967]
[1727812862976,0.001,61827.0,61826.0,0.45348267]
[1727812863190,0.001,61827.0,61826.0,0.212913]
[1727812863451,0.001,61827.0,61826.0,0.202913]
[1727812863670,0.001,61827.0,61826.0,0.204913]
[1727812864088,0.001,61827.0,61826.0,0.202913]
[1727812864311,0.43462867,61837.0,61833.0,0.194069]
[1727812864737,0.20406412,61836.0,61831.0,0.194074]
[1727812865003,0.01000212,61836.0,61833.0,0.19407]
[1727812865238,0.33695879,61834.0,61826.0,0.01082]
[1727812865458,0.33695879,61834.0,61826.0,0.01882]
[1727812865459,0.53204779,61827.0,61826.0,0.01882]
[1727812865688,0.73683843,61827.0,61826.0,0.00882]
[1727812865906,0.68850559,61827.0,61826.0,0.00882]
[1727812866120,0.94180064,61827.0,61826.0,0.00082]
[1727812866538,0.78535386,61827.0,61826.0,0.00082]
[1727812866746,0.78535386,61827.0,61826.0,0.00182]
[1727812867407,0.71285824,61827.0,61826.0,0.00182]
[1727812867673,0.71285824,61827.0,61804.0,0.0001]
[1727812867674,0.005,61824.0,61804.0,0.0001]
[1727812867897,0.77416486,61827.0,61807.0,0.24056967]
[1727812867898,0.291949,61808.0,61807.0,0.24056967]
[1727812868121,0.4484068,61808.0,61807.0,0.24056967]
[1727812868351,0.4484068,61808.0,61804.0,0.0001]
[1727812868352,0.194159,61805.0,61804.0,0.0001]
[1727812868824,0.20212934,61805.0,61804.0,0.0001]
[1727812869040,0.35858714,61805.0,61804.0,0.0001]
[1727812869288,0.35858714,61805.0,61804.0,0.0051]
[1727812869289,0.85199271,61805.0,61804.0,0.0051]
[1727812869501,0.85199271,61805.0,61804.0,0.0001]
[1727812869718,0.9002424,61805.0,61804.0,0.0001]
[1727812869924,0.85199271,61805.0,61804.0,0.0001]
[1727812870200,0.87735561,61805.0,61804.0,0.0001]
[1727812870399,0.72190883,61805.0,61804.0,0.0081]
[1727812870615,0.72090883,61805.0,61804.0,0.0001]
[1727812870832,0.72190883,61805.0,61804.0,0.0061]
[1727812871267,0.72090883,61805.0,61804.0,0.0001]
[1727812871486,0.85199271,61805.0,61804.0,0.0051]
[1727812872140,0.90021613,61805.0,61804.0,0.0051]
[1727812872352,0.85199271,61805.0,61804.0,0.0051]
[1727812873048,0.69654593,61805.0,61804.0,0.0121]
[1727812875579,0.20312934,61805.0,61804.0,0.0121]
[1727812875803,0.228491,61805.0,61804.0,0.0121]
[1727812877816,0.69654593,61805.0,61804.0,0.0121]
[1727812878050,0.85446597,61805.0,61804.0,0.0121]
[1727812878913,0.85346597,61805.0,61804.0,0.00592]
[1727812879131,0.95346597,61805.0,61804.0,0.00592]
[1727812879344,0.95516597,61805.0,61804.0,0.00592]
[1727812879783,0.95716597,61805.0,61804.0,0.00192]
[1727812880000,0.95716597,61805.0,61804.0,0.00092]
[1727812880208,0.96016597,61805.0,61804.0,0.00092]
[1727812880423,0.80371919,61805.0,61804.0,0.00092]
[1727812880652,0.79871919,61805.0,61804.0,0.00092]
[1727812880864,0.70771919,61805.0,61804.0,0.00092]
[1727812882918,0.2143026,61805.0,61804.0,0.00092]
[1727812883145,0.0201436,61805.0,61804.0,0.00092]
[1727812883561,0.0201436,61805.0,61804.0,0.195082]
[1727812883769,0.0161436,61805.0,61804.0,0.195082]
[1727812883975,0.0151436,61805.0,61804.0,0.195082]
[1727812884188,0.0151436,61805.0,61804.0,0.00092]
[1727812884441,0.0151436,61805.0,61804.0,0.195082]
[1727812884442,0.0017,61805.0,61804.0,0.195082]
[1727812884648,0.00835923,61805.0,61804.0,0.00592]
[1727812884871,0.00835923,61805.0,61804.0,0.00092]
[1727812885075,0.20251823,61805.0,61804.0,0.00092]
[1727812885340,0.53947702,61805.0,61804.0,0.00092]
[1727812885585,0.72050171,61805.0,61804.0,0.00092]
[1727812885847,0.87695951,61805.0,61804.0,0.00092]
[1727812886339,0.87695951,61805.0,61804.0,0.00592]
[1727812886593,0.71629404,61805.0,61804.0,0.00092]
[1727812886834,0.71629404,61805.0,61804.0,0.00692]
[1727812887078,0.71729404,61805.0,61804.0,0.00892]
[1727812887492,0.71629404,61805.0,61804.0,0.00092]
[1727812887693,0.87274082,61805.0,61804.0,0.00092]
[1727812887903,0.88467191,61805.0,61804.0,0.00092]
[1727812889543,0.88467191,61805.0,61803.0,0.29656163]
[1727812889544,0.199162,61804.0,61803.0,0.29656163]
[1727812889759,0.63506658,61804.0,61803.0,0.29656163]
[1727812889970,0.64500029,61804.0,61803.0,0.29656163]
[1727812890183,0.64300029,61804.0,61803.0,0.29656163]
[1727812890598,0.65300029,61804.0,61803.0,0.29756163]
[1727812891245,0.65400029,61804.0,61803.0,0.29756163]
[1727812891445,0.67200029,61804.0,61803.0,0.29856163]
[1727812892076,0.005,61796.0,61783.0,0.20699977]
[1727812892290,0.53118379,61784.0,61783.0,0.20699977]
[1727812892512,0.53118379,61784.0,61780.0,0.000821]
[1727812892513,0.194234,61781.0,61780.0,0.000821]
[1727812892974,0.2037009,61781.0,61780.0,0.000821]
[1727812893655,0.0094669,61781.0,61780.0,0.000821]
[1727812893868,0.2037009,61781.0,61780.0,0.000821]
[1727812894080,0.2037009,61781.0,61780.0,0.001821]
[1727812894295,0.0094669,61781.0,61780.0,0.197058]
[1727812894515,0.0094669,61781.0,61780.0,0.002821]
[1727812894742,0.0094669,61781.0,61780.0,0.197058]
[1727812895592,0.0094669,61781.0,61780.0,0.002821]
[1727812896291,0.0094669,61781.0,61778.0,0.388486]
[1727812896502,0.0094669,61781.0,61777.0,0.389307]
[1727812896503,0.0094669,61781.0,61780.0,0.194237]
[1727812897207,0.0094669,61781.0,61780.0,0.53119579]
[1727812897440,0.0234669,61781.0,61780.0,0.86425359]
[1727812897654,0.014,61781.0,61780.0,0.86425359]
[1727812897866,0.02537002,61784.0,61783.0,0.194228]
[1727812898115,0.02537002,61784.0,61783.0,0.3506858]
[1727812899192,0.02537002,61784.0,61783.0,0.4786858]
[1727812899402,0.24056967,61794.0,61793.0,0.53115479]
[1727812899625,0.24056967,61794.0,61793.0,0.76451259]
[1727812900067,0.24056967,61804.0,61800.0,0.388347]
[1727812900270,0.24056967,61804.0,61803.0,0.194165]
[1727812900729,0.194144,61810.0,61804.0,0.19416]
[1727812900950,0.38828,61812.0,61798.0,0.388358]
[1727812900951,0.24056967,61808.0,61798.0,0.388358]
[1727812901157,0.24056967,61807.0,61798.0,0.388358]
[1727812901383,0.24846282,61807.0,61801.0,0.194171]
[1727812901631,0.194156,61806.0,61801.0,0.194171]
[1727812901832,0.00789315,61807.0,61799.0,0.388353]
[1727812902037,0.00787736,61805.0,61804.0,0.194162]
[1727812902272,0.00788263,61805.0,61796.0,0.194185]
[1727812902481,0.62881867,61816.0,61796.0,0.1564578]
[1727812902693,0.24056967,61808.0,61802.0,0.388336]
[1727812902914,0.00790888,61815.0,61804.0,0.33695879]
[1727812903136,0.00790888,61815.0,61810.0,0.194142]
[1727812903137,0.24056967,61815.0,61810.0,0.194142]
[1727812903357,0.24056967,61815.0,61808.0,0.388298]
[1727812903358,0.43469967,61815.0,61808.0,0.388298]
[1727812903616,0.43469967,61815.0,61809.0,0.194144]
[1727812903825,0.43469967,61815.0,61808.0,0.388298]
[1727812903826,0.24056967,61815.0,61810.0,0.194142]
[1727812904057,0.24056967,61815.0,61811.0,0.194139]
[1727812904273,0.194125,61816.0,61811.0,0.194139]
[1727812904933,0.002,61815.0,61812.0,0.194135]
[1727812905357,0.21947661,61817.0,61812.0,0.194135]
[1727812905561,0.63081867,61816.0,61810.0,0.194143]
[1727812905772,0.390249,61816.0,61808.0,0.388298]
[1727812905981,0.194131,61814.0,61809.0,0.388289]
[1727812906209,0.002,61815.0,61811.0,0.194138]
[1727812906416,0.002,61815.0,61806.0,0.194155]
[1727812906417,0.194144,61810.0,61806.0,0.194155]
[1727812907041,0.21950071,61810.0,61806.0,0.194154]
[1727812907254,0.21950071,61810.0,61797.0,0.388366]
[1727812907255,0.388293,61809.0,61797.0,0.1]
[1727812907472,0.10454984,61809.0,61797.0,0.1]
[1727812907679,0.02535671,61810.0,61805.0,0.194157]
[1727812907888,0.19527987,61808.0,61800.0,0.388343]
[1727812908097,0.19527494,61809.0,61805.0,0.194157]
[1727812908307,0.00113581,61807.0,61805.0,0.194157]
[1727812908517,0.194149,61809.0,61805.0,0.194157]
[1727812908757,0.00114074,61806.0,61805.0,0.194157]
[1727812908983,0.02535671,61810.0,61805.0,0.388315]
[1727812909216,0.02535671,61810.0,61809.0,0.194146]
[1727812910286,0.02705671,61810.0,61809.0,0.194146]
[1727812910508,0.02705671,61810.0,61809.0,0.002]
[1727812910738,0.22119971,61810.0,61809.0,0.002]
[1727812910952,0.195843,61810.0,61809.0,0.002]
[1727812911471,0.50990775,61810.0,61809.0,0.002]
[1727812911723,0.194157,61806.0,61800.0,0.388345]
[1727812911944,0.194157,61806.0,61802.0,0.194168]
[1727812912804,0.0017,61810.0,61799.0,0.1]
[1727812913001,0.0017,61810.0,61806.0,0.194152]
[1727812913002,0.24056967,61809.0,61806.0,0.194152]
[1727812913213,0.24056967,61809.0,61802.0,0.388331]
[1727812913214,0.38832,61805.0,61802.0,0.002]
[1727812913439,0.194165,61803.0,61802.0,0.002]
[1727812913647,0.24245992,61803.0,61802.0,0.002]
[1727812914076,0.4484257,61803.0,61802.0,0.002]
[1727812914306,0.37598332,61803.0,61802.0,0.002]
[1727812914519,0.76743843,61803.0,61802.0,0.002]
[1727812914942,0.88817573,61803.0,61802.0,0.002]
[1727812915153,0.88817573,61803.0,61789.0,0.388414]
[1727812915387,0.04840264,61798.0,61793.0,0.194195]
[1727812915606,0.388358,61799.0,61793.0,0.194195]
[1727812915607,0.194188,61796.0,61793.0,0.194195]
[1727812915812,0.388358,61799.0,61794.0,0.194192]
[1727812916020,0.194184,61797.0,61794.0,0.194192]
[1727812916479,0.02536212,61798.0,61796.0,0.194186]
[1727812916701,0.02536212,61798.0,61794.0,0.388384]
[1727812916702,0.02536212,61798.0,61797.0,0.194184]
[1727812918882,0.02536212,61798.0,61797.0,0.5326418]
[1727812918883,0.02636212,61798.0,61797.0,0.5326418]
[1727812919407,0.02636212,61798.0,61797.0,0.5346418]
[1727812919409,0.02636212,61798.0,61797.0,0.5326418]
[1727812919647,0.02636212,61798.0,61797.0,0.5306418]
[1727812919892,0.02636212,61798.0,61797.0,0.5326418]
[1727812919893,0.02736212,61798.0,61797.0,0.5326418]
[1727812920134,0.02636212,61798.0,61797.0,0.5326418]
[1727812920380,0.02536212,61798.0,61797.0,0.5306418]
[1727812920615,0.02636212,61798.0,61797.0,0.5306418]
[1727812921133,0.001,61798.0,61797.0,0.5306418]
[1727812921392,0.24220967,61809.0,61808.0,0.270549]
[1727812921706,0.24220967,61809.0,61808.0,0.86396559]
[1727812921895,0.01110342,61809.0,61808.0,0.89196559]
[1727812922157,0.0017,61810.0,61809.0,0.211146]
[1727812922458,0.0017,61810.0,61809.0,0.5692038]
[1727812922737,0.24056967,61823.0,61809.0,0.5692038]
[1727812922738,0.24056967,61823.0,61822.0,0.294105]
[1727812922984,0.24056967,61823.0,61822.0,0.78752159]
[1727812923496,0.00164,61824.0,61823.0,0.294102]
[1727812923777,0.00164,61824.0,61823.0,0.4505598]
[1727812924300,0.00164,61824.0,61823.0,0.5289598]
[1727812924544,0.00164,61824.0,61823.0,0.5669598]
[1727812924778,0.00164,61824.0,61823.0,0.6576598]
[1727812925281,0.24220967,61836.0,61826.0,0.334093]
[1727812925542,0.24220967,61836.0,61826.0,0.5722508]
[1727812927772,0.00264,61827.0,61826.0,0.5722508]
[1727812928738,0.00364,61827.0,61826.0,0.5742508]
[1727812930008,0.00264,61827.0,61826.0,0.5722508]
[1727812930237,0.00364,61827.0,61826.0,0.5692508]
[1727812930454,0.00264,61827.0,61826.0,0.5672508]
[1727812930679,0.00364,61827.0,61826.0,0.5672508]
[1727812930919,0.00464,61827.0,61826.0,0.5392508]
[1727812931153,0.00264,61827.0,61826.0,0.5322508]
[1727812931375,0.00364,61827.0,61826.0,0.196093]
[1727812932061,0.00464,61827.0,61826.0,0.3525508]
[1727812932497,0.00464,61827.0,61826.0,0.4595508]
[1727812932714,0.00464,61827.0,61826.0,0.4545508]
[1727812932937,0.00264,61827.0,61826.0,0.4735508]
[1727812933168,0.00264,61827.0,61826.0,0.4785508]
[1727812933383,0.00264,61827.0,61826.0,0.4525508]
[1727812933595,0.00264,61827.0,61826.0,0.4505508]
[1727812933810,0.00364,61827.0,61826.0,0.4525508]
[1727812934049,0.00464,61827.0,61826.0,0.4545508]
[1727812934270,0.00264,61827.0,61826.0,0.4545508]
[1727812934630,0.00364,61827.0,61826.0,0.4565508]
[1727812934738,0.00464,61827.0,61826.0,0.4565508]
[1727812934968,0.00264,61827.0,61826.0,0.4525508]
[1727812935196,0.00164,61827.0,61826.0,0.46479892]
[1727812935435,0.00264,61827.0,61826.0,0.46479892]
[1727812935900,0.02798369,61827.0,61826.0,0.46479892]
[1727812936130,0.02898369,61827.0,61826.0,0.47179892]
[1727812936567,0.02798369,61827.0,61826.0,0.46979892]
[1727812936792,0.02798369,61827.0,61826.0,0.46479892]
[1727812937039,0.02898369,61827.0,61826.0,0.46479892]
[1727812937484,0.02698369,61827.0,61826.0,0.46279892]
[1727812937941,0.02898369,61827.0,61826.0,0.46479892]
[1727812938171,0.02898369,61827.0,61826.0,0.4525508]
[1727812938446,0.02798369,61827.0,61826.0,0.4525508]
[1727812938702,0.02898369,61827.0,61826.0,0.69312047]
[1727812938936,0.02898369,61827.0,61826.0,0.4525508]
[1727812939174,0.02798369,61827.0,61826.0,0.4505508]
[1727812939400,0.02898369,61827.0,61826.0,0.4525508]
[1727812939621,0.02798369,61827.0,61826.0,0.4505508]
[1727812939844,0.02698369,61827.0,61826.0,0.4525508]
[1727812940057,0.02898369,61827.0,61826.0,0.4525508]
[1727812940282,0.02898369,61827.0,61826.0,0.296093]
[1727812940511,0.02798369,61827.0,61826.0,0.296093]
[1727812940742,0.02698369,61827.0,61826.0,0.194093]
[1727812940989,0.00264,61827.0,61826.0,0.196093]
[1727812941221,0.00364,61827.0,61826.0,0.196093]
[1727812941462,0.00264,61827.0,61826.0,0.196093]
[1727812941692,0.00364,61827.0,61826.0,0.196093]
[1727812942411,0.00364,61827.0,61826.0,0.194093]
[1727812942621,0.00264,61827.0,61826.0,0.194093]
[1727812942836,0.00264,61827.0,61826.0,0.002]
[1727812943049,0.00264,61827.0,61825.0,0.194095]
[1727812943260,0.00364,61827.0,61826.0,0.002]
[1727812943925,0.00364,61827.0,61826.0,0.196093]
[1727812944141,0.02998818,61827.0,61826.0,0.196093]
[1727812944361,0.02998818,61827.0,61826.0,0.3525508]
[1727812944797,0.02998818,61827.0,61826.0,0.4545508]
[1727812945052,0.02998818,61827.0,61826.0,0.4525508]
[1727812945258,0.02998818,61827.0,61826.0,0.4545508]
[1727812945473,0.02798818,61827.0,61826.0,0.50296635]
[1727812945709,0.02798818,61827.0,61826.0,0.50996635]
[1727812945710,0.02898818,61827.0,61826.0,0.50996635]
[1727812946164,0.02798818,61827.0,61826.0,0.50296635]
[1727812946401,0.02898818,61827.0,61826.0,0.50996635]
[1727812946635,0.02898818,61827.0,61826.0,0.50296635]
[1727812946859,0.00164,61836.0,61835.0,0.63302279]
[1727812947094,0.00164,61836.0,61835.0,0.78948059]
[1727812947626,0.00164,61836.0,61835.0,0.78748059]
[1727812948504,0.00264,61836.0,61835.0,0.78748059]
[1727812949405,0.00164,61836.0,61835.0,0.78748059]
[1727812949637,0.00164,61836.0,61835.0,0.4635218]
[1727812949638,0.00264,61836.0,61835.0,0.4635218]
[1727812949855,0.00264,61836.0,61835.0,0.80048059]
[1727812950351,0.02898162,61836.0,61835.0,0.321064]
[1727812950786,0.00464,61836.0,61835.0,0.321064]
[1727812951241,0.00464,61836.0,61835.0,0.221064]
[1727812951476,0.01098452,61836.0,61835.0,0.221064]
[1727812951690,0.01192985,61836.0,61835.0,0.221064]
[1727812951914,0.00464,61836.0,61835.0,0.221064]
[1727812952136,0.00364,61836.0,61835.0,0.221064]
[1727812952624,0.00264,61836.0,61835.0,0.194064]
[1727812952831,0.00364,61836.0,61835.0,0.208064]
[1727812953075,0.00364,61836.0,61835.0,0.194064]
[1727812953593,0.00464,61836.0,61835.0,0.79748059]
[1727812953909,0.02898185,61836.0,61835.0,0.79748059]
[1727812954403,0.00264,61836.0,61835.0,0.78748059]
[1727812954655,0.00264,61836.0,61835.0,0.4585218]
[1727812954908,0.00164,61836.0,61835.0,0.4585218]
[1727812955148,0.00164,61836.0,61835.0,0.302064]
[1727812955395,0.00264,61836.0,61835.0,0.302064]
[1727812955880,0.00164,61836.0,61835.0,0.78988975]
[1727812956128,0.00164,61836.0,61835.0,0.90458059]
[1727812956358,0.00164,61836.0,61835.0,0.89158059]
[1727812956604,0.00164,61836.0,61835.0,0.89358059]
[1727812956868,0.00164,61836.0,61835.0,0.91658059]
[1727812957120,0.02797858,61836.0,61835.0,0.90358059]
[1727812957388,0.02797858,61836.0,61835.0,0.91758059]
[1727812957612,0.02697858,61836.0,61835.0,0.91758059]
[1727812957822,0.02797858,61836.0,61835.0,0.91758059]
[1727812958262,0.02697858,61836.0,61835.0,0.91758059]
[1727812958690,0.02797858,61836.0,61835.0,0.90358059]
[1727812958934,0.003497,61840.0,61839.0,0.211052]
[1727812959155,0.003497,61840.0,61839.0,0.49374313]
[1727812959374,0.003497,61840.0,61839.0,0.4905098]
[1727812960305,0.003497,61840.0,61839.0,0.5045098]
[1727812960306,0.004497,61840.0,61839.0,0.5045098]
[1727812960543,0.004497,61840.0,61839.0,0.5185098]
[1727812960771,0.00164,61846.0,61845.0,0.66899179]
[1727812960982,0.00164,61846.0,61845.0,0.82744959]
[1727812962108,0.00164,61846.0,61845.0,0.90574959]
[1727812963183,0.00164,61846.0,61845.0,0.91974959]
[1727812963405,0.00264,61846.0,61845.0,0.92752646]
[1727812963624,0.00264,61846.0,61845.0,0.83722646]
[1727812963852,0.00264,61846.0,61845.0,0.3734908]
[1727812964527,0.00164,61846.0,61845.0,0.3644908]
[1727812964971,0.00164,61846.0,61845.0,0.3504908]
[1727812965215,0.02797747,61846.0,61845.0,0.4594908]
[1727812965495,0.02797747,61846.0,61845.0,0.4734908]
[1727812965708,0.02797747,61846.0,61845.0,0.4594908]
[1727812965926,0.02797747,61846.0,61845.0,0.4734908]
[1727812966142,0.02797747,61846.0,61845.0,0.4594908]
[1727812966368,0.02797747,61846.0,61845.0,0.303033]
[1727812966621,0.02797747,61846.0,61845.0,0.315033]
[1727812966854,0.02697747,61846.0,61845.0,0.294033]
[1727812967322,0.02797747,61846.0,61845.0,0.303033]
[1727812967787,0.02797747,61846.0,61845.0,0.294033]
[1727812967788,0.02697747,61846.0,61845.0,0.294033]
[1727812968044,0.02697747,61846.0,61845.0,0.63999179]
[1727812968045,0.02797747,61846.0,61845.0,0.63999179]
[1727812968265,0.02797747,61846.0,61845.0,0.65099179]
[1727812968502,0.02797747,61846.0,61845.0,0.79644959]
[1727812968727,0.02797747,61846.0,61845.0,0.80644959]
[1727812968963,0.02797747,61846.0,61845.0,0.64999179]
[1727812969191,0.02797747,61846.0,61845.0,0.213033]
[1727812969452,0.20197747,61846.0,61845.0,0.019]
[1727812969671,0.20958692,61846.0,61845.0,0.019]
[1727812970145,0.20958692,61846.0,61845.0,0.213033]
[1727812970364,0.13038692,61846.0,61845.0,0.213033]
[1727812970809,0.12277747,61846.0,61845.0,0.213033]
[1727812971020,0.09744,61846.0,61845.0,0.213033]
[1727812971228,0.10504073,61846.0,61845.0,0.213033]
[1727812971656,0.09744,61846.0,61845.0,0.213033]
[1727812971867,0.09744,61846.0,61845.0,0.019]
[1727812972089,0.29903374,61846.0,61845.0,0.019]
[1727812972311,0.65572927,61846.0,61845.0,0.019]
[1727812972533,0.65572927,61846.0,61833.0,0.24056967]
[1727812972534,0.0953,61834.0,61833.0,0.24056967]
[1727812972753,0.0953,61834.0,61833.0,0.43464067]
[1727812973261,0.10286374,61834.0,61830.0,0.388159]
[1727812973480,0.10286374,61834.0,61833.0,0.194071]
[1727812974156,0.40067638,61834.0,61833.0,0.008]
[1727812974848,0.63314031,61834.0,61833.0,0.018]
[1727812975060,0.72896653,61834.0,61833.0,0.008]
[1727812975281,0.47328004,61834.0,61833.0,0.008]
[1727812975485,0.44807747,61834.0,61833.0,0.004]
[1727812975715,0.194072,61833.0,61829.0,0.19408]
[1727812975930,0.04840223,61833.0,61828.0,0.388169]
[1727812976137,0.40567838,61834.0,61830.0,0.194079]
[1727812976351,0.45308061,61834.0,61830.0,0.194079]
[1727812976561,0.21060938,61834.0,61832.0,0.194073]